Cogmind - Beta 9.2 --- EXPLORER MODE // 2019.11.22 @ 23:08:29 Player: sideriver81 Result: Escaped! Performance ------------- Evolutions (9) 4500 Regions Visited (25) 5000 Robots Destroyed (197) 985 Value Destroyed (9851) 9851 Prototype IDs (69) 1380 Alien Tech Used (1) 200 Bonus (6522) 6522 TOTAL SCORE: 28438 Bonus ------- High Alert Combat Kills 242 Follower Combat Kills 985 Entered Garrisons 200 Used RIF Installer 500 Network Hubs Disabled 200 Aligned with FarCom 300 Met Imprinter 300 Met Zhirov 300 Met R17 at Cetus 500 Win 3000 Friendly Fire -5 Cogmind --------- Core Integrity 1487/1600 Matter 300/300 Energy 265/280 System Corruption 7% Temperature Cool (-190) Movement Walking (112) Location To Epsilon Eridani Parts ------- > --- POWER (2) -------- Light Quantum Reactor Light Quantum Reactor > --- PROPULSION (5) --- Biometal Leg Biometal Leg Biometal Leg Biometal Leg Centrium Leg > --- UTILITY (15) ----- Advanced Power Amplifier Advanced Cryofiber Web Advanced Heat Sink High-capacity Storage Unit Makeshift Terrain Scanner Advanced Target Analyzer Improved Armor Integrity Analyzer Makeshift Transmission Jammer Advanced Phase Shifter Heavy Armor Plating Hacking Suite Relay Coupler [NC] (16) Relay Coupler [Swarmer] (56) Relay Coupler [Grunt] (12) > --- WEAPON (4) ------- Gamma Rifle Quantum Rifle KE Penetrator Advanced Remote Datajack > --- INVENTORY (12) --- Light Quantum Reactor Biometal Leg Improved Stasis Canceller Relay Coupler [Swarmer] (50) Relay Coupler [Grunt] (40) Relay Coupler [Duelist] (36) Transdimensional Reconstructor Advanced Variable Charge Gun KE Penetrator Micro-nuke Launcher Advanced Remote Datajack Thunder Hammer Peak State ------------ > --- POWER ------------ Light Quantum Reactor Light Quantum Reactor > --- PROPULSION ------- Advanced Myomer Leg Advanced Myomer Leg Advanced Myomer Leg Biometal Leg Centrium Leg > --- UTILITY ---------- Advanced Cryofiber Web Advanced Heat Sink High-capacity Storage Unit Makeshift Terrain Scanner Advanced Target Analyzer Improved Armor Integrity Analyzer Quantum Capacitor Makeshift Transmission Jammer Advanced Phase Shifter Advanced Phase Shifter Hacking Suite Relay Coupler [NC] Relay Coupler [Swarmer] Relay Coupler [Grunt] > --- WEAPON ----------- Gamma Rifle Gamma Rifle KE Penetrator Advanced Remote Datajack > --- INVENTORY -------- Light Quantum Reactor Biometal Leg Advanced Power Amplifier Improved Stasis Canceller Relay Coupler [Swarmer] Relay Coupler [Grunt] Relay Coupler [Duelist] Transdimensional Reconstructor Advanced Variable Charge Gun Micro-nuke Launcher Advanced Remote Datajack Thunder Hammer [Rating: 174] Favorites ----------- Power Reinforced Deuterium Engine Engine Reinforced Deuterium Engine Power Core Micro Fission Core Reactor Light Quantum Reactor Propulsion Aluminum Leg Treads Centrium Heavy Treads Leg Aluminum Leg Hover Unit Gravmag System Utility Advanced Heat Sink Device Advanced Heat Sink Storage Large Storage Unit Processor Improved Armor Integrity Analyzer Hackware Relay Coupler [NC] Protection Reactive Plating Weapon Improved Remote Datajack Energy Gun Advanced Variable Charge Gun Energy Cannon Compact HERF Cannon Ballistic Gun Heavy Battle Rifle Launcher Improved Grenade Launcher Special Weapon Improved Remote Datajack Impact Weapon Thunder Hammer Slashing Weapon Scythe Piercing Weapon Heavy Pick Build | -11 -10 -10 -10 -9 -8 -7 -7 -7 -7 -6 -6 -6 -6 -6 -6 -6 -5 -4 -4 -4 -4 -3 -3 -2 -1 ------- Run | Scr Mat Min Exi Min Mat Fac Low Low Zio Pro Fac Gar Ext Cet Arc Hub Fac Fac Upp Upp Zhi Pro Res Res Acc Slots Evolved 19 | . 1 . . . 4 2 . . . . 2 . . . . . 2 2 . . . . 2 2 2 Power 1 | . . . . . . . . . . . . . . . . . 1 . . . . . . . . Propulsion 3 | . . . . . 2 . . . . . . . . . . . . . . . . . 1 . . Utility 13 | . 1 . . . 2 2 . . . . 2 . . . . . . 1 . . . . 1 2 2 Weapon 2 | . . . . . . . . . . . . . . . . . 1 1 . . . . . . . Parts Attached 277 | . 1 1 4 4 12 12 7 4 4 3 15 13 13 19 . 3 60 10 5 11 10 8 7 7 44 Power 23 | . . . . . . 2 1 . . . . . 1 3 . . 8 . . 1 . 2 2 . 3 Engine 4 | . . . . . . 1 1 . . . . . 1 1 . . . . . . . . . . . Core 8 | . . . . . . 1 . . . . . . . . . . 7 . . . . . . . . Reactor 11 | . . . . . . . . . . . . . . 2 . . 1 . . 1 . 2 2 . 3 Propulsion 68 | . . 1 . . 3 2 4 1 2 2 5 6 4 5 . . 11 4 . 4 3 1 . 1 9 Treads 4 | . . . . . . . . . . . . . . 2 . . 2 . . . . . . . . Leg 63 | . . 1 . . 3 2 4 1 2 2 5 6 3 3 . . 9 4 . 4 3 1 . 1 9 Wheel . | . . . . . . . . . . . . . . . . . . . . . . . . . . Hover 1 | . . . . . . . . . . . . . 1 . . . . . . . . . . . . Flight . | . . . . . . . . . . . . . . . . . . . . . . . . . . Utility 95 | . 1 . 1 . 5 3 2 2 1 . 7 5 4 5 . 1 19 1 5 2 5 4 4 2 16 Device 35 | . . . . . . 1 . 1 . . 2 2 . 3 . 1 6 . 2 2 1 3 . 2 9 Storage 4 | . . . 1 . 1 . . . . . . . . . . . . . 1 . . . . . 1 Processor 12 | . . . . . 2 1 . . 1 . 2 1 1 . . . 1 . . . . 1 . . 2 Hackware 13 | . . . . . . 1 . . . . . . 2 . . . 5 . 1 . . . 2 . 2 Protection 31 | . 1 . . . 2 . 2 1 . . 3 2 1 2 . . 7 1 1 . 4 . 2 . 2 Artifact . | . . . . . . . . . . . . . . . . . . . . . . . . . . Weapon 91 | . . . 3 4 4 5 . 1 1 1 3 2 4 6 . 2 22 5 . 4 2 1 1 4 16 Energy Gun 31 | . . . 1 . . 1 . 1 . . . . . 4 . 1 5 2 . 2 1 1 . 3 9 Energy Cannon 2 | . . . 1 . . . . . . . . . . . . . . . . . . . 1 . . Ballistic Gun 21 | . . . 1 2 3 1 . . . . . . 1 2 . 1 6 2 . . . . . . 2 Ballistic Cannon . | . . . . . . . . . . . . . . . . . . . . . . . . . . Launcher 6 | . . . . 2 . 1 . . . . 1 1 . . . . 1 . . . . . . . . Special Weapon 9 | . . . . . . . . . . . . . 1 . . . 5 . . 1 . . . . 2 Impact Weapon 9 | . . . . . . . . . . 1 1 . . . . . . 1 . 1 1 . . 1 3 Slashing Weapon 12 | . . . . . 1 2 . . 1 . 1 1 1 . . . 5 . . . . . . . . Piercing Weapon 1 | . . . . . . . . . . . . . 1 . . . . . . . . . . . . Special Melee Weapon . | . . . . . . . . . . . . . . . . . . . . . . . . . . Unidentified Prototypes 13 | . . . . . . . . . . . 2 . . 4 . . 1 1 . . 4 1 . . . Parts Lost 53 | . . . . . . 1 5 . . 1 1 4 3 13 . 3 14 1 . 1 . 2 1 . 3 Power 9 | . . . . . . 1 1 . . . . . . 2 . . 4 . . . . . 1 . . Propulsion 9 | . . . . . . . 1 . . . . . . 6 . . 2 . . . . . . . . Utility 26 | . . . . . . . 3 . . . 1 3 3 4 . 2 5 . . 1 . 2 . . 2 Weapon 9 | . . . . . . . . . . 1 . 1 . 1 . 1 3 1 . . . . . . 1 Highest Loss Streak 13 | . . . . . . 1 3 . . 1 1 3 2 13 . 2 4 1 . 1 . 1 1 . 2 Average Slot Usage (%) 93 | . 100 100 92 87 90 89 88 98 99 99 96 96 98 85 87 86 89 97 97 92 96 98 88 90 95 Engine 3 | . 12 12 12 12 8 5 1 7 7 7 6 6 6 . . . . . . . . . . . . Core 2 | . . . . . . 1 4 . . . . . . . . . 6 10 10 6 5 1 . . . Reactor 2 | . . . . . . . . . . . . . . 5 6 6 3 . . 3 5 8 7 8 7 Treads 1 | . . . . . . . . . . . . . . 6 12 12 7 . . . . . . . . Leg 20 | . 25 25 25 25 33 28 27 28 28 28 25 25 25 7 . . 6 20 20 20 20 20 18 18 18 Device 8 | . . . . . . 5 . 6 7 7 6 9 6 15 18 17 8 5 6 6 12 17 11 12 20 Storage 6 | . 12 12 12 12 8 7 7 7 7 7 6 6 6 6 6 6 5 5 5 5 5 5 4 4 3 Processor 11 | . . . . . 7 15 18 14 14 21 22 24 22 12 12 12 8 10 10 10 10 10 9 8 7 Hackware 8 | . . . . . . 4 4 . . . . . 10 6 6 6 17 25 20 16 15 13 14 16 15 Protection 11 | . 25 25 25 25 18 7 8 20 19 14 17 13 8 10 12 12 7 3 5 5 3 2 4 4 5 Energy Gun 3 | . . . . . . 1 . 6 7 . . . . 6 6 7 2 5 5 5 5 6 5 8 6 Ballistic Gun 5 | . 25 25 17 11 13 10 7 7 . . . . 2 3 6 4 6 3 5 5 5 3 . . 1 Special Weapon 1 | . . . . . . . . . . . . . 2 . . . 3 5 5 5 5 5 4 4 3 Impact Weapon 1 | . . . . . . . . . . 6 6 . . . . . . 3 5 4 5 5 4 1 1 Slashing Weapon 2 | . . . . . . 1 7 . 6 7 6 8 4 . . . 2 1 . . . . . . . Naked Turns . | . . . . . . . . . . . . . . . . . . . . . . . . . . Heaviest Build 126 | 17 18 18 49 49 49 51 51 56 56 51 57 61 58 64 64 64 74 66 82 92 95 102 111 113 126 Greatest Support 160 | 20 20 20 20 20 45 53 53 63 63 60 67 72 76 160 160 160 160 91 91 95 115 115 115 140 148 Greatest Overweight (x) 2 | . . . 2 2 1 . . . . . . . . 2 . . 2 . . . . . . . 1 Average Overweight (x) . | . . . . 2 . . . . . . . . . . . . . . . . . . . . . Largest Inventory Capacity 18 | . 8 8 12 12 18 10 10 10 10 10 10 10 10 10 10 10 10 10 12 12 12 12 12 12 12 Average Capacity 10 | . 8 8 8 12 10 10 10 10 10 10 10 10 10 10 10 10 10 10 11 12 12 12 12 12 12 Most Carried 12 | . 8 8 12 12 11 10 10 10 10 10 10 10 10 10 10 10 10 10 12 12 12 12 12 12 12 Average Carried 10 | . 7 7 8 11 9 9 9 9 9 9 9 9 9 9 10 10 9 9 11 11 11 11 11 11 11 Final Capacity 12 | 8 8 8 12 12 10 10 10 10 10 10 10 10 10 10 10 10 10 10 12 12 12 12 12 12 12 Final Carried 12 | 7 8 8 12 12 10 10 10 10 10 10 10 10 10 10 10 10 10 10 12 12 12 12 12 12 12 Class Distribution -------------------- 60% | Scavenger-Mutant 16% | Mutant 12% | Bothacker-Mutant 3% | Scavenger-Tank Dominant Class ---------------- Mutant | -10/Materials Mutant | -10/Mines Mutant | -10/Exiles Mutant | -9/Mines Mutant | -8/Materials Scavenger-Mutant | -7/Factory Scavenger-Mutant | -7/Lower Caves Scavenger-Mutant | -7/Lower Caves Scavenger-Mutant | -7/Zion Scavenger-Mutant | -6/Proximity Caves Scavenger-Mutant | -6/Factory Scavenger-Mutant | -6/Garrison Bothacker-Mutant | -6/Extension Scavenger-Mutant | -6/Cetus Scavenger-Mutant | -6/Archives Scavenger-Mutant | -6/Hub_04(d) Scavenger-Mutant | -5/Factory Bothacker-Mutant | -4/Factory Bothacker-Mutant | -4/Upper Caves Scavenger-Mutant | -4/Upper Caves Scavenger-Mutant | -4/Zhirov Scavenger-Mutant | -3/Proximity Caves Scavenger-Mutant | -3/Research Scavenger-Gunner | -2/Research Scavenger-Tank | -1/Access Resources | -11 -10 -10 -10 -9 -8 -7 -7 -7 -7 -6 -6 -6 -6 -6 -6 -6 -5 -4 -4 -4 -4 -3 -3 -2 -1 ----------- Run | Scr Mat Min Exi Min Mat Fac Low Low Zio Pro Fac Gar Ext Cet Arc Hub Fac Fac Upp Upp Zhi Pro Res Res Acc Matter Collected 5098 | 173 61 46 120 95 174 242 85 122 36 40 140 254 135 245 70 109 1344 126 155 232 90 187 97 77 643 Remotely . | . . . . . . . . . . . . . . . . . . . . . . . . . . Salvage Created 9425 | . 72 109 . 87 186 499 299 287 . 116 528 415 335 813 335 431 1969 54 113 539 130 417 . 78 1613 Parts 476 | . 5 5 . . 10 29 8 18 . 5 28 22 17 35 12 22 131 . 5 18 . 22 . 5 79 Haulers Intercepted 2 | . . . . . . . . . . . . . . . . . 2 . . . . . . . . Recyclers Shooed 5 | . . . . . . . . . . . . . . . . . 3 . . . . . 2 . . Parts Field Recycled . | . . . . . . . . . . . . . . . . . . . . . . . . . . Retrieved Matter . | . . . . . . . . . . . . . . . . . . . . . . . . . . Parts Self-Destructed . | . . . . . . . . . . . . . . . . . . . . . . . . . . Prevented . | . . . . . . . . . . . . . . . . . . . . . . . . . . Kills | -11 -10 -10 -10 -9 -8 -7 -7 -7 -7 -6 -6 -6 -6 -6 -6 -6 -5 -4 -4 -4 -4 -3 -3 -2 -1 ------- Run | Scr Mat Min Exi Min Mat Fac Low Low Zio Pro Fac Gar Ext Cet Arc Hub Fac Fac Upp Upp Zhi Pro Res Res Acc Combat Hostiles Destroyed 162 | . 2 4 . 13 5 11 6 8 . 2 8 12 5 13 4 6 27 1 2 7 . 7 . 2 17 Melee 36 | . . . . . . 3 4 . . 2 8 8 5 4 . . 2 . . . . . . . . Guns 97 | . 2 4 . 3 4 4 2 8 . . . . . 9 4 6 22 . 2 5 . 7 . 2 13 AOE 22 | . . . . 10 1 4 . . . . . 4 . . . . 3 . . . . . . . . Classes Destroyed 15 | . 1 1 . 1 1 5 . . . . 1 . 1 1 . 2 1 . . . . . . . . Worker 9 | . . . . . . . . . . . . . . . . 2 7 . . . . . . . . Builder 9 | . . . . . . 3 . . . . . . . . . 1 4 . . . . . . . 1 Hauler 2 | . . . . . . . . . . . . . . . . . 2 . . . . . . . . Recycler 4 | . . . . . . 1 . . . . . . . . . . 2 . . . . . . . 1 Operator 2 | . . . . . . . . . . . . . . . . 1 1 . . . . . . . . Watcher 9 | . . . . . 1 . . . . . 2 . . 2 . 1 1 . . . . . . . 2 Swarmer 28 | . . 2 . 1 2 3 . 5 . . . 3 . 3 . . 4 . 1 . . 2 . 2 . Grunt 50 | . 2 2 . . 3 4 4 1 . 1 3 3 . 2 . 2 11 . 1 3 . 2 . . 6 Brawler 6 | . . . . . . 1 1 . . 1 1 2 . . . . . . . . . . . . . Duelist 1 | . . . . . . . . . . . . . . 1 . . . . . . . . . . . Sentry 16 | . . . . . . 2 1 1 . . 1 . 3 . 4 2 1 . . . . . . . 1 Hunter 17 | . . . . . . . . . . . 1 4 1 . . . 6 1 . 2 . . . . 2 Programmer 24 | . . . . . . 1 . 1 . . 2 . . . . 2 5 . . 2 . 3 . . 8 Behemoth 1 | . . . . . . . . . . . . . 1 . . . . . . . . . . . . Cetus Guard 7 | . . . . . . . . . . . . . . 7 . . . . . . . . . . . Assembled 12 | . . . . 12 . . . . . . . . . . . . . . . . . . . . . Best Kill Streak 12 | . 2 2 . 12 2 9 2 4 . 2 4 3 2 6 2 5 8 1 2 2 . 2 . 2 3 Combat Bots Only 12 | . 2 2 . 12 2 4 2 4 . 2 4 3 2 6 2 4 4 1 2 2 . 2 . 2 5 Max Kills in Single Turn 6 | . 1 1 . 4 1 2 1 1 . 1 1 1 1 2 1 3 6 1 1 1 . 1 . 1 3 Gunslinging 1 | . . . . . . . . . . . . . . 1 . . . . . . . . . . 1 Exploded 4 | . . . . 4 1 2 . . . . . 1 . . . . 1 . . . . . . . . Melee 1 | . . . . . . 1 1 . . 1 1 1 1 1 . . 1 . . . . . . . . Uniques/NPCs Destroyed . | . . . . . . . . . . . . . . . . . . . . . . . . . . Combat | -11 -10 -10 -10 -9 -8 -7 -7 -7 -7 -6 -6 -6 -6 -6 -6 -6 -5 -4 -4 -4 -4 -3 -3 -2 -1 -------- Run | Scr Mat Min Exi Min Mat Fac Low Low Zio Pro Fac Gar Ext Cet Arc Hub Fac Fac Upp Upp Zhi Pro Res Res Acc Damage Taken 14164 | . 60 47 . 15 125 505 626 161 . 219 503 1083 538 2311 187 961 3288 173 201 878 . 781 153 75 1274 Core 1058 | . 7 . . 7 26 20 81 16 . 13 9 32 54 273 29 29 246 . 38 11 . 54 . . 113 Absorbed by Shields . | . . . . . . . . . . . . . . . . . . . . . . . . . . Core Remaining (%) 87 | 100 . . . 94 95 . . . . 81 . . . . . 49 75 . . . . 91 100 100 92 Volleys Fired 455 | . 6 9 . 5 9 18 10 19 . . . 8 1 35 18 24 132 5 17 36 21 23 7 5 47 Largest 3 | . 2 2 . 1 2 2 1 2 . . . 1 1 2 2 2 2 2 2 3 1 2 1 3 3 Hottest 320 | . 40 40 . 33 53 83 33 113 . . . 36 30 320 115 160 240 153 95 175 65 155 40 249 244 Shots Fired 792 | . 12 18 . 17 38 32 10 25 . . . 8 1 69 26 39 210 6 25 72 21 46 7 15 95 Gun 721 | . 12 18 . 12 38 28 10 25 . . . . . 69 26 39 185 5 16 71 21 46 . 11 89 Cannon 4 | . . . . . . . . . . . . . . . . . . . . . . . . 4 . Launcher 21 | . . . . 5 . 4 . . . . . 8 . . . . 4 . . . . . . . . Special 46 | . . . . . . . . . . . . . 1 . . . 21 1 9 1 . . 7 . 6 Kinetic 424 | . 12 18 . 12 38 25 10 19 . . . . . 20 18 18 142 . 8 35 . 18 . . 31 Thermal 169 | . . . . . . . . 6 . . . . . 49 8 21 31 1 . 6 . 23 . 3 21 Explosive 21 | . . . . 5 . 4 . . . . . 8 . . . . 4 . . . . . . . . Electromagnetic 132 | . . . . . . 3 . . . . . . . . . . 12 4 8 30 21 5 . 12 37 Robot Hit Streak 48 | . 7 8 . 19 16 21 8 10 . . . 16 . 25 14 47 48 17 21 24 23 25 12 20 35 Robot Miss Streak 3 | . 1 1 . 1 2 1 1 2 . . . . 1 1 1 . 1 . 2 2 1 3 . 1 2 Penetration Max 1 | . . . . . . . . . . . . . . . 1 1 1 . . 1 . . . . 1 Secondary Targets 11 | . . . . . . 1 . 1 . . . . . 3 . . 3 . . 1 . . . . 2 Max Gunslinging Chain 1 | . . . . . . 1 . 1 . . . . . 1 . . 1 . . 1 . . . . 1 Capacitor 4 | . . . . . . . . . . . . . . . . . . . . . . . . . 4 Autonomous 33 | . . . . 12 21 . . . . . . . . . . . . . . . . . . . . Shots Hit Robots 910 | . 10 13 . 16 31 39 35 23 . 12 39 55 44 74 20 33 189 6 20 61 19 38 15 9 109 Core Hits 407 | . 6 6 . 17 10 31 10 13 . 5 18 25 12 39 12 23 81 1 3 15 20 14 . 6 40 Critical Hits 48 | . . 1 . . . 4 1 1 . . 1 2 1 3 2 3 13 . . 4 2 3 . . 7 Critical Kills 15 | . . 1 . . . 2 . . . . . . . 1 . . 5 . . 1 . 1 . . 4 Critical Parts Destroyed 28 | . . . . . . 2 . 1 . . 1 2 . 1 2 3 8 . . 3 . 2 . . 3 Melee Attacks 330 | . . . . . 1 14 26 . . 12 47 65 46 16 . . 30 5 . . . . 9 2 57 Impact 87 | . . . . . . . . . . . 14 . . . . . . 5 . . . . 9 2 57 Slashing 230 | . . . . . 1 14 26 . . 12 33 65 43 6 . . 30 . . . . . . . . Piercing 13 | . . . . . . . . . . . . . 3 10 . . . . . . . . . . . Sneak Attacks 7 | . . . . . . 2 . . . . 3 1 . . . . . . . . . . 1 . . Combat Hostiles 1 | . . . . . . . . . . . . 1 . . . . . . . . . . . . . Follow-up Attacks 15 | . . . . . . . . . . . 7 2 5 1 . . . . . . . . . . . Damage Inflicted 28745 | . 108 146 . 778 733 1852 988 432 . 333 1285 2447 1470 2349 658 1417 6556 131 246 1434 99 1055 399 257 3572 Guns 15177 | . 108 146 . 235 652 401 187 432 . . . . . 1839 652 916 4411 131 246 1434 99 1055 . 212 2021 Cannons 45 | . . . . . . . . . . . . . . . . . . . . . . . . 45 . Explosions 4689 | . . . . 543 81 821 . . . . . 795 . . . 501 1845 . . . . . . . 103 Melee 8776 | . . . . . . 630 801 . . 333 1285 1652 1470 510 . . 280 . . . . . 399 . 1416 Ramming 58 | . . . . . . . . . . . . . . . 6 . 20 . . . . . . . 32 Kinetic 8501 | . 108 146 . 235 652 357 187 332 . . . . . 368 385 437 3204 . 116 666 . 422 . . 886 Thermal 5958 | . . . . . . 152 . 100 . . . . . 1471 267 479 2135 27 . 175 . 584 . 68 500 Explosive 2777 | . . . . 543 81 669 . . . . . 795 . . . . 689 . . . . . . . . Electromagnetic 2675 | . . . . . . 44 . . . . . . . . . 501 228 104 130 593 99 49 . 189 738 Impact 1993 | . . . . . . . . . . . 178 . . . . . . . . . . . 399 . 1416 Slashing 6379 | . . . . . . 630 801 . . 333 1107 1652 1382 194 . . 280 . . . . . . . . Piercing 404 | . . . . . . . . . . . . . 88 316 . . . . . . . . . . . Highest Corruption 9 | . . . . . . 1 3 3 3 . 2 2 2 2 2 9 5 . . 1 1 2 1 . 7 Average Corruption 2 | . . . . . . 1 1 3 3 . 2 2 2 2 2 2 4 . . 1 1 1 1 . 4 Corruption Purged . | . . . . . . . . . . . . . . . . . . . . . . . . . . Effects 137 | . . . . . . 2 7 15 2 . 2 6 9 4 5 5 60 . . 1 1 2 2 . 14 Message Errors 31 | . . . . . . . 1 4 1 . 1 2 2 1 1 2 14 . . . . . 1 . 1 Matter Fused 19 | . . . . . . . . 3 1 . . . . . . 1 10 . . . . . . . 4 Heat Flow Errors 21 | . . . . . . . 1 2 . . . . 2 1 2 . 10 . . . . 1 . . 2 Energy Discharges 11 | . . . . . . 1 1 1 . . 1 2 1 . . . 3 . . . . 1 . . . Parts Rejected 1 | . . . . . . . . . . . . . . . . . 1 . . . . . . . . Data Loss (minor) 21 | . . . . . . . 3 3 . . . 1 3 1 1 1 3 . . 1 . . . . 4 Data Loss (major) 2 | . . . . . . . . . . . . . . . . . 2 . . . . . . . . Misfires 2 | . . . . . . . . . . . . . . . . . 1 . . . . . . . 1 Targeting Errors 24 | . . . . . . 1 1 2 . . . 1 1 1 1 1 12 . . . 1 . 1 . 1 Weapon Failures 5 | . . . . . . . . . . . . . . . . . 4 . . . . . . . 1 Overload Shots 7 | . . . . . . . . . . . . . . 3 . . 2 . . . . . . . 2 Effects 1 | . . . . . . . . . . . . . . 1 . . . . . . . . . . . Heat Surge 1 | . . . . . . . . . . . . . . 1 . . . . . . . . . . . Overflow Damage 794 | . . . . 12 41 62 45 . . 7 136 90 . . . . 195 . . . . . 49 . 157 Projectiles 13 | . . . . . . . . . . . . . . . . . . . . . . . 5 . 8 Explosions 290 | . . . . 12 41 31 . . . . . 10 . . . . 177 . . . . . . . 19 Melee 491 | . . . . . . 31 45 . . 7 136 80 . . . . 18 . . . . . 44 . 130 Knockbacks 15 | . . . . . . . . . . . . . . . . . . . . . . . 3 . 12 Impact 11 | . . . . . . . . . . . . . . . . . . . . . . . 2 . 9 Kinetic . | . . . . . . . . . . . . . . . . . . . . . . . . . . Secondary 4 | . . . . . . . . . . . . . . . . . . . . . . . 1 . 3 Self-Inflicted Damage 245 | . . . . . . 93 . . . . . 36 . . . 59 . . . . . . . . 57 Shots 7 | . . . . . . 2 . . . . . 3 . . . 1 . . . . . . . . 1 Rammed 2 | . . . . . . . . . . . . . . . 1 . 1 . . . . . . . . Targets Rammed 3 | . . . . . . . . . . . . . . . 1 . 1 . . . . . . . 1 Kicked 1 | . . . . . . . . . . . . . . . . . . . . . . . . . 1 Crushed . | . . . . . . . . . . . . . . . . . . . . . . . . . . Highest Temperature 485 | . 18 9 . . 6 54 212 276 . . . . 237 485 178 . 344 51 7 84 . . . . 20 Average Temperature 72 | . 9 9 . . 3 16 86 93 . . . . 130 194 89 . 69 22 4 42 . . . . 20 Received Heat Transfer 3258 | . 54 18 . . 54 213 264 66 . 135 183 153 174 603 45 81 621 24 69 111 . 219 9 . 162 Effects 2 | . . . . . . . . . . . . . . 1 . . 1 . . . . . . . . Energy Bleed 1 | . . . . . . . . . . . . . . . . . 1 . . . . . . . . Interference 1 | . . . . . . . . . . . . . . 1 . . . . . . . . . . . Siege Activations 1 | . . . . . . . . . . . . . . . 1 . . . . . . . . . . Total Turns 1 | . . . . . . . . . . . . . . . 1 . . . . . . . . . . Longest Duration 1 | . . . . . . . . . . . . . . . 1 . . . . . . . . . . Robots Corrupted 4 | . . . . . . . . . . . . . . . . . . 1 . 2 . . . . 1 Combat Hostiles 4 | . . . . . . . . . . . . . . . . . . 1 . 2 . . . . 1 Parts Fried 22 | . . . . . . . . . . . . . . . . . 2 1 1 6 . 1 . . 11 Impact Corruptions 17 | . . . . . . . . . . . . . . . . . . . . . . . 5 . 12 Robots Melted . | . . . . . . . . . . . . . . . . . . . . . . . . . . Combat Hostiles . | . . . . . . . . . . . . . . . . . . . . . . . . . . Parts Melted 9 | . . . . . . . . . . . . . . 3 1 1 1 . . . . 2 . . 1 Heat Transferred 6470 | . . . . . . 100 . 225 . . . . . 1704 296 666 1936 37 . 185 . 703 . 74 544 Parts Sabotaged . | . . . . . . . . . . . . . . . . . . . . . . . . . . Parts Stolen . | . . . . . . . . . . . . . . . . . . . . . . . . . . Parts Stripped . | . . . . . . . . . . . . . . . . . . . . . . . . . . Power Chain Reactions 1 | . . . . . . . . . . . . . . . . . 1 . . . . . . . . Missiles Intercepted . | . . . . . . . . . . . . . . . . . . . . . . . . . . Alert | -11 -10 -10 -10 -9 -8 -7 -7 -7 -7 -6 -6 -6 -6 -6 -6 -6 -5 -4 -4 -4 -4 -3 -3 -2 -1 ------- Run | Scr Mat Min Exi Min Mat Fac Low Low Zio Pro Fac Gar Ext Cet Arc Hub Fac Fac Upp Upp Zhi Pro Res Res Acc Peak Influence 611 | . 54 114 . 30 254 348 . . . . 155 551 283 220 162 253 611 150 . . . . 112 129 239 Average Influence 138 | . 23 37 . 21 125 85 . . . . 60 385 159 82 136 112 226 113 . . . . 54 84 87 Maximum Alert Level 3 | . . . . . 1 1 . . . . . 2 1 1 . 1 3 . . . . . . . 1 Low Security (%) 75 | . 100 100 . 100 66 80 . . . . 100 12 50 99 100 81 56 100 . . . . 100 100 89 Level 1 13 | . . . . . 33 19 . . . . . 19 50 . . 18 15 . . . . . . . 10 Level 2 10 | . . . . . . . . . . . . 67 . . . . 28 . . . . . . . . Level 3 . | . . . . . . . . . . . . . . . . . . . . . . . . . . Level 4 . | . . . . . . . . . . . . . . . . . . . . . . . . . . Level 5 . | . . . . . . . . . . . . . . . . . . . . . . . . . . High Security . | . . . . . . . . . . . . . . . . . . . . . . . . . . Max Security . | . . . . . . . . . . . . . . . . . . . . . . . . . . Squads Dispatched 20 | . . . . . 1 . . . . . 4 . . . . 1 9 . . . . . . 2 3 Investigation . | . . . . . . . . . . . . . . . . . . . . . . . . . . Extermination 11 | . . . . . . . . . . . 2 . . . . 1 4 . . . . . . 1 3 Reinforcement 8 | . . . . . 1 . . . . . 2 . . . . . 4 . . . . . . 1 . Assault 1 | . . . . . . . . . . . . . . . . . 1 . . . . . . . . Garrison . | . . . . . . . . . . . . . . . . . . . . . . . . . . Intercept . | . . . . . . . . . . . . . . . . . . . . . . . . . . Construction Impeded 2 | . . . . . . . . . . . . . . . . . 2 . . . . . . . . Haulers Reinforced 2 | . . . . . . . . . . . . . . . . . 2 . . . . . . . . Stealth | -11 -10 -10 -10 -9 -8 -7 -7 -7 -7 -6 -6 -6 -6 -6 -6 -6 -5 -4 -4 -4 -4 -3 -3 -2 -1 --------- Run | Scr Mat Min Exi Min Mat Fac Low Low Zio Pro Fac Gar Ext Cet Arc Hub Fac Fac Upp Upp Zhi Pro Res Res Acc Distress Signals 11 | . . . . . 2 . . . . . 1 . 1 2 . 1 1 1 . . . . 1 . 1 Communications Jammed 29 | . . . . . . . . . . . . . . . . . . . . . . . . . 29 Distress Signals 29 | . . . . . . . . . . . . . . . . . . . . . . . . . 29 Times Spotted 312 | . 4 5 . 12 13 13 8 8 . 3 15 13 13 19 8 31 66 3 11 9 . 12 8 7 31 Peak Tracking Total 19 | . 2 2 . 19 3 6 3 2 . 3 4 4 5 5 1 16 5 3 4 2 . 3 2 3 4 Tactical Retreats 19 | . . 1 . 3 1 . 1 . . 2 . 1 . . . 1 4 . . 2 . 3 . . . Traps | -11 -10 -10 -10 -9 -8 -7 -7 -7 -7 -6 -6 -6 -6 -6 -6 -6 -5 -4 -4 -4 -4 -3 -3 -2 -1 ------- Run | Scr Mat Min Exi Min Mat Fac Low Low Zio Pro Fac Gar Ext Cet Arc Hub Fac Fac Upp Upp Zhi Pro Res Res Acc Traps Triggered 8 | . . . . . . . . . . . . 3 1 . . . . . . . . . . . 4 Indirectly . | . . . . . . . . . . . . . . . . . . . . . . . . . . Trap Hack Attempts . | . . . . . . . . . . . . . . . . . . . . . . . . . . Triggered . | . . . . . . . . . . . . . . . . . . . . . . . . . . Disarmed . | . . . . . . . . . . . . . . . . . . . . . . . . . . Reprogrammed . | . . . . . . . . . . . . . . . . . . . . . . . . . . Reused . | . . . . . . . . . . . . . . . . . . . . . . . . . . Traps Extracted . | . . . . . . . . . . . . . . . . . . . . . . . . . . Installed . | . . . . . . . . . . . . . . . . . . . . . . . . . . Triggered 1 | . . . . . . . . . . 1 . . . . . . . . . . . . . . . Machines | -11 -10 -10 -10 -9 -8 -7 -7 -7 -7 -6 -6 -6 -6 -6 -6 -6 -5 -4 -4 -4 -4 -3 -3 -2 -1 ---------- Run | Scr Mat Min Exi Min Mat Fac Low Low Zio Pro Fac Gar Ext Cet Arc Hub Fac Fac Upp Upp Zhi Pro Res Res Acc Machines Disabled 47 | . . . . . 3 4 . . . . . 2 3 . 2 5 19 3 2 . 1 . . 1 2 Max in Single Turn 9 | . . . . . 2 3 . . . . . 1 1 . 1 2 9 . . . 1 . . . 1 Garrison Access 6 | . . . . . . . . . . . . . . . . . 3 1 . . . . . . 2 Garrison Relay 2 | . . . . . . . . . . . . 2 . . . . . . . . . . . . . Network Hub 1 | . . . . . . . . . . . . . . . . 1 . . . . . . . . . Energy Cycler 1 | . . . . . . . . . . . . . . . . . . . . . . . . . 1 Machines Sabotaged . | . . . . . . . . . . . . . . . . . . . . . . . . . . Garrisons Compromised . | . . . . . . . . . . . . . . . . . . . . . . . . . . Overloaded Fab Kills . | . . . . . . . . . . . . . . . . . . . . . . . . . . Fab Network Shutdowns 1 | . . . . . . . . . . . . . . . . . 1 . . . . . . . . Hacking | -11 -10 -10 -10 -9 -8 -7 -7 -7 -7 -6 -6 -6 -6 -6 -6 -6 -5 -4 -4 -4 -4 -3 -3 -2 -1 --------- Run | Scr Mat Min Exi Min Mat Fac Low Low Zio Pro Fac Gar Ext Cet Arc Hub Fac Fac Upp Upp Zhi Pro Res Res Acc Machines Accessed 65 | . 2 . 2 . 5 4 . . 1 . 5 . 7 4 1 3 8 2 2 1 8 1 2 2 5 Terminals 41 | . 2 . . . 5 3 . . . . 3 . 7 4 . 3 3 1 1 1 . 1 2 2 3 Fabricators 2 | . . . . . . . . . . . 1 . . . . . 1 . . . . . . . . Repair Stations . | . . . . . . . . . . . . . . . . . . . . . . . . . . Recycling Units . | . . . . . . . . . . . . . . . . . . . . . . . . . . Scanalyzers 2 | . . . . . . 1 . . . . . . . . . . 1 . . . . . . . . Garrison Access 7 | . . . . . . . . . . . 1 . . . . . 3 1 . . . . . . 2 Total Hacks 240 | . 7 . 24 . 15 6 . . 3 . 13 . 15 5 25 6 25 3 8 3 47 3 11 7 14 Successful 204 | . 5 . 24 . 12 3 . . 3 . 7 . 7 5 25 4 22 2 8 3 47 3 8 7 9 Failed 36 | . 2 . . . 3 3 . . . . 6 . 8 . . 2 3 1 . . . . 3 . 5 Catastrophic 2 | . . . . . . 2 . . . . . . . . . . . . . . . . . . . Database Lockouts . | . . . . . . . . . . . . . . . . . . . . . . . . . . Manual 48 | . 5 . 1 . 8 1 . . . . 5 . 3 2 . . 7 1 . 2 . 2 6 3 2 Terminals 121 | . 7 . . . 15 5 . . . . 8 . 15 5 . 6 15 2 7 3 . 3 11 7 12 Fabricators 8 | . . . . . . . . . . . 4 . . . . . 4 . . . . . . . . Repair Stations . | . . . . . . . . . . . . . . . . . . . . . . . . . . Recycling Units . | . . . . . . . . . . . . . . . . . . . . . . . . . . Scanalyzers 4 | . . . . . . 1 . . . . . . . . . . 3 . . . . . . . . Garrison Access 7 | . . . . . . . . . . . 1 . . . . . 3 1 . . . . . . 2 Terminal Hacks 169 | . 2 . 24 . 9 2 . . 3 . 4 . 6 3 25 4 10 1 8 2 47 2 5 5 7 Record 98 | . . . 23 . . . . . . . . . . 2 25 . . . 8 1 35 1 . 1 2 Part Schematic 8 | . . . . . . . . . 3 . . . . . . . 1 . . . 4 . . . . Robot Schematic 1 | . . . . . . . . . . . . . . . . . . . . . . . 1 . . Robot Analysis 7 | . . . . . . . . . . . 1 . . . . . . . . . 4 . . . 2 Prototype ID Bank 16 | . 1 . . . 3 . . . . . . . 1 . . 2 3 . . . 4 . 1 1 . Open Door 3 | . . . . . . . . . . . . . 2 1 . . . . . . . . . . . Level Access Points 3 | . . . . . . . . . . . . . . . . . . . . . . 1 1 1 . Branch Access Points 4 | . . . . . 1 1 . . . . . . . . . . . . . 1 . . 1 . . Emergency Access Points 1 | . . . . . . . . . . . . . . . . 1 . . . . . . . . . Terminal Index 3 | . . . . . . 1 . . . . . . . . . . . . . . . . . 1 1 Garrison Index 1 | . . . . . . . . . . . . . . . . . . . . . . . . . 1 Alert Level 1 | . . . . . . . . . . . 1 . . . . . . . . . . . . . . Unreport Threat 1 | . . . . . . . . . . . . . . . . 1 . . . . . . . . . Locate Traps 8 | . 1 . . . 2 . . . . . 1 . 1 . . . 2 1 . . . . . . . Dispatch Records 2 | . . . . . . . . . . . . . 1 . . . 1 . . . . . . . . Investigation Status 1 | . . . . . . . . . . . . . . . . . 1 . . . . . . . . Recall Extermination 2 | . . . . . . . . . . . . . . . . . 1 . . . . . . . 1 Recall Reinforcements 3 | . . . . . 1 . . . . . 1 . . . . . . . . . . . . 1 . Hauler Manifests 2 | . . . . . 1 . . . . . . . 1 . . . . . . . . . . . . Registered Components 3 | . . . . . 1 . . . . . . . . . . . 1 . . . . . 1 . . EX-Prototype ID Bank 1 | . . . 1 . . . . . . . . . . . . . . . . . . . . . . Fabricator Hacks 5 | . . . . . . . . . . . 2 . . . . . 3 . . . . . . . . Network Status 2 | . . . . . . . . . . . 1 . . . . . 1 . . . . . . . . Load Schematic 1 | . . . . . . . . . . . . . . . . . 1 . . . . . . . . Build 2 | . . . . . . . . . . . 1 . . . . . 1 . . . . . . . . Repair Station Hacks . | . . . . . . . . . . . . . . . . . . . . . . . . . . Recycling Unit Hacks . | . . . . . . . . . . . . . . . . . . . . . . . . . . Scanalyzer 3 | . . . . . . 1 . . . . . . . . . . 2 . . . . . . . . Insert Component 2 | . . . . . . 1 . . . . . . . . . . 1 . . . . . . . . Analyze 1 | . . . . . . . . . . . . . . . . . 1 . . . . . . . . Garrison Access Hacks 7 | . . . . . . . . . . . 1 . . . . . 3 1 . . . . . . 2 Unlock Access 1 | . . . . . . . . . . . 1 . . . . . . . . . . . . . . Seal Access 6 | . . . . . . . . . . . . . . . . . 3 1 . . . . . . 2 Unauthorized Hacks 47 | . 6 . . . 6 1 . . . . 1 . 4 4 . . 8 1 . 2 . 2 7 4 1 Terminals 20 | . 3 . . . 3 . . . . . . . 1 2 . . 4 . . 1 . 1 3 2 . Track 1 | . 1 . . . . . . . . . . . . . . . . . . . . . . . . Assimilate 2 | . . . . . . . . . . . . . . . . . 1 . . . . . 1 . . Botnet 16 | . 2 . . . 3 . . . . . . . 1 2 . . 2 . . 1 . 1 2 2 . Operators 1 | . . . . . . . . . . . . . . . . . 1 . . . . . . . . Fabricators . | . . . . . . . . . . . . . . . . . . . . . . . . . . Repair Stations . | . . . . . . . . . . . . . . . . . . . . . . . . . . Recycling Units . | . . . . . . . . . . . . . . . . . . . . . . . . . . Scanalyzers . | . . . . . . . . . . . . . . . . . . . . . . . . . . Garrison Access . | . . . . . . . . . . . . . . . . . . . . . . . . . . Data Cores Recovered 2 | . . . . . 1 . . . . . . . . . . 1 . . . . . . . . . Used . | . . . . . . . . . . . . . . . . . . . . . . . . . . Hacking Detections 36 | . 2 . . . 4 3 . . . . 5 . 6 1 . 3 4 1 1 . . . 2 1 3 Full Trace Events . | . . . . . . . . . . . . . . . . . . . . . . . . . . Feedback Events . | . . . . . . . . . . . . . . . . . . . . . . . . . . Feedback Blocked . | . . . . . . . . . . . . . . . . . . . . . . . . . . Robot Schematics Acquired 1 | . . . . . . . . . . . . . . . . . . . . . . . 1 . . Robots Built . | . . . . . . . . . . . . . . . . . . . . . . . . . . Matter . | . . . . . . . . . . . . . . . . . . . . . . . . . . Time . | . . . . . . . . . . . . . . . . . . . . . . . . . . Total Robot Build Rating . | . . . . . . . . . . . . . . . . . . . . . . . . . . Part Schematics Acquired 9 | . . . . . . . . . 3 . . . . . . . 2 . . . 4 . . . . Parts Built 3 | . . . . . . . . . . . 2 . . . . . 1 . . . . . . . . Matter 541 | . . . . . . . . . . . 190 . . . . . 351 . . . . . . . . Time 140 | . . . . . . . . . . . 47 . . . . . 93 . . . . . . . . Total Part Build Rating 17 | . . . . . . . . . . . 10 . . . . . 7 . . . . . . . . Parts Repaired . | . . . . . . . . . . . . . . . . . . . . . . . . . . Time . | . . . . . . . . . . . . . . . . . . . . . . . . . . Parts Recycled . | . . . . . . . . . . . . . . . . . . . . . . . . . . Recycled Matter . | . . . . . . . . . . . . . . . . . . . . . . . . . . Retrieved Matter . | . . . . . . . . . . . . . . . . . . . . . . . . . . Retrieved Components . | . . . . . . . . . . . . . . . . . . . . . . . . . . Parts Scanalyzed 1 | . . . . . . . . . . . . . . . . . 1 . . . . . . . . Part Schematics Acquired 1 | . . . . . . . . . . . . . . . . . 1 . . . . . . . . Parts Damaged 1 | . . . . . . . . . . . . . . . . . 1 . . . . . . . . Bothacking | -11 -10 -10 -10 -9 -8 -7 -7 -7 -7 -6 -6 -6 -6 -6 -6 -6 -5 -4 -4 -4 -4 -3 -3 -2 -1 ------------ Run | Scr Mat Min Exi Min Mat Fac Low Low Zio Pro Fac Gar Ext Cet Arc Hub Fac Fac Upp Upp Zhi Pro Res Res Acc Used RIF Installer 1 | . . . . . . . . . . . . 1 . . . . . . . . . . . . . Robots Hacked 29 | . . . . . . . . . . . . . 1 . . . 10 1 6 1 . . 4 . 6 Non-combat 9 | . . . . . . . . . . . . . 1 . . . 3 1 1 . . . 1 . 2 Combat 20 | . . . . . . . . . . . . . . . . . 7 . 5 1 . . 3 . 4 Robot Hacks Applied 30 | . . . . . . . . . . . . . 1 . . . 10 1 6 1 . . 5 . 6 parse_system 4 | . . . . . . . . . . . . . . . . . . . 2 1 . . 1 . . drop_inventory 1 | . . . . . . . . . . . . . . . . . . . . . . . 1 . . block_reporting 3 | . . . . . . . . . . . . . 1 . . . 1 . . . . . . . 1 map_route 4 | . . . . . . . . . . . . . . . . . 2 1 . . . . . . 1 disrupt_area 1 | . . . . . . . . . . . . . . . . . . . . . . . . . 1 overload_power 1 | . . . . . . . . . . . . . . . . . . . 1 . . . . . . overwrite_iff 4 | . . . . . . . . . . . . . . . . . . . 1 . . . . . 3 streamctrl_high 1 | . . . . . . . . . . . . . . . . . . . . . . . 1 . . formatsys_high 11 | . . . . . . . . . . . . . . . . . 7 . 2 . . . 2 . . Relay Couplers Released 19 | . . . . . . . . . . . . 9 . . . . 5 1 . . . . . . 4 Machine Destruction 15 | . . . . . . . . . . . . 9 . . . . 1 1 . . . . . . 4 Programmers 4 | . . . . . . . . . . . . . . . . . 4 . . . . . . . . Attached 11 | . . . . . . . . . . . . . 2 . . . 4 . 1 . . . 2 . 2 Robots Rewired . | . . . . . . . . . . . . . . . . . . . . . . . . . . Allies Hacked 1 | . . . . . . . . . . . . . . . . . 1 . . . . . . . . Hacks Repelled . | . . . . . . . . . . . . . . . . . . . . . . . . . . Allies | -11 -10 -10 -10 -9 -8 -7 -7 -7 -7 -6 -6 -6 -6 -6 -6 -6 -5 -4 -4 -4 -4 -3 -3 -2 -1 -------- Run | Scr Mat Min Exi Min Mat Fac Low Low Zio Pro Fac Gar Ext Cet Arc Hub Fac Fac Upp Upp Zhi Pro Res Res Acc Total Allies 20 | . . . . 2 . . . . . . . . 1 . . . 8 . 3 . . . 3 . 3 Largest Group 4 | . . . . 2 2 1 . . . . . . 1 . . . 4 3 2 1 . . 3 3 2 Highest-Rated Group 192 | . . . . 41 41 31 . . . . . . 156 . . . 128 114 91 64 . . 192 192 124 Highest-Rated Ally 156 | . . . . 31 31 31 . . . . . . 156 . . . 54 49 64 64 . . 64 64 64 Total Orders . | . . . . . . . . . . . . . . . . . . . . . . . . . . Ally Attacks 177 | . . . . . 19 4 . . . . . . 21 . . . 58 7 16 1 . . 9 12 30 Total Damage 6161 | . . . . . 239 62 . . . . . . 453 . . . 2289 726 469 28 . . 453 291 1151 Kills 41 | . . . . . 5 . . . . . . . 1 . . . 17 3 4 . . . 4 3 4 Allies Corrupted 1 | . . . . . . . . . . . . . . . . . . . . . . . . . 1 Allies Melted . | . . . . . . . . . . . . . . . . . . . . . . . . . . Intel | -11 -10 -10 -10 -9 -8 -7 -7 -7 -7 -6 -6 -6 -6 -6 -6 -6 -5 -4 -4 -4 -4 -3 -3 -2 -1 ------- Run | Scr Mat Min Exi Min Mat Fac Low Low Zio Pro Fac Gar Ext Cet Arc Hub Fac Fac Upp Upp Zhi Pro Res Res Acc Robot Analysis Total 7 | . . . . . . . . . . . 1 . . . . . . . . . 4 . . . 2 Derelict Logs Recovered 8 | . . 1 . . . . . 2 . 2 . . . . . . . . 2 1 . . . . . Drone Launches . | . . . . . . . . . . . . . . . . . . . . . . . . . . Drone Recoveries . | . . . . . . . . . . . . . . . . . . . . . . . . . . Decoded 0b10 Intel 16 | . . . . . . . . . . . 12 3 1 . . . . . . . . . . . . Garrisons 1 | . . . . . . . . . . . 1 . . . . . . . . . . . . . . Patrols 8 | . . . . . . . . . . . 4 3 1 . . . . . . . . . . . . Reinforcements 1 | . . . . . . . . . . . 1 . . . . . . . . . . . . . . Guards 6 | . . . . . . . . . . . 6 . . . . . . . . . . . . . . Exploration | -11 -10 -10 -10 -9 -8 -7 -7 -7 -7 -6 -6 -6 -6 -6 -6 -6 -5 -4 -4 -4 -4 -3 -3 -2 -1 ------------- Run | Scr Mat Min Exi Min Mat Fac Low Low Zio Pro Fac Gar Ext Cet Arc Hub Fac Fac Upp Upp Zhi Pro Res Res Acc Turns Passed 17889 | . 112 482 748 481 723 742 660 678 1320 417 933 827 772 614 323 390 2424 202 857 917 288 460 560 317 1642 Spaces Moved 11522 | 1 64 376 535 255 529 445 451 511 1074 313 601 501 499 270 164 201 1194 125 649 648 188 314 419 231 964 Core . | . . . . . . . . . . . . . . . . . . . . . . . . . . Treads 1404 | . . . . . . . . . . . . . . 236 164 201 803 . . . . . . . . Legs 10118 | 1 64 376 535 255 529 445 451 511 1074 313 601 501 499 34 . . 391 125 649 648 188 314 419 231 964 Wheels . | . . . . . . . . . . . . . . . . . . . . . . . . . . Hover . | . . . . . . . . . . . . . . . . . . . . . . . . . . Flight . | . . . . . . . . . . . . . . . . . . . . . . . . . . Fastest Speed 112 | 120 120 120 120 180 120 120 120 120 122 122 122 120 120 120 160 160 120 120 120 120 120 120 120 120 112 Average Speed 127 | 120 120 120 137 180 120 120 120 121 122 122 122 120 120 156 160 160 147 120 120 120 120 120 120 120 119 Slowest Speed 180 | 120 120 120 180 180 150 120 120 122 122 122 122 122 120 180 160 160 180 120 120 120 120 120 120 120 150 Overloaded Moves . | . . . . . . . . . . . . . . . . . . . . . . . . . . Propulsion Burnouts . | . . . . . . . . . . . . . . . . . . . . . . . . . . Robots Hopped 1 | . . . . . . . . . . . . . . . . . 1 . . . . . . . . Cave-ins Triggered . | . . . . . . . . . . . . . . . . . . . . . . . . . . Exploration Rate (%) 48 | 2 13 81 89 83 50 12 65 71 89 53 15 60 61 79 90 23 33 4 67 68 62 57 15 8 22 Regions Visited 25 Branch Regions 15 Pre-discovered Areas 8 | . . 1 1 . . . . . 2 . . . . . . . . . 1 . 3 . . . . Known Exits Taken 24 | 1 1 1 1 1 1 1 1 1 1 1 1 . 1 1 1 1 1 1 1 1 1 1 1 1 . Unknown Exits Taken . | . . . . . . . . . . . . . . . . . . . . . . . . . . Scrap Searched 18 | . . 2 . 1 . . 1 2 2 2 . . . . . . . . 3 3 . 2 . . . Spaces Dug 36 | . . . . . 1 1 . . . . 1 4 . . . 2 14 4 . . . . 1 2 6 Terrain Destroyed 554 | . . . . 49 55 53 . . . . 1 67 . 11 9 167 117 4 . 1 . 3 1 2 14 Melee 33 | . . . . . 1 1 . . . . 1 4 . . . . 13 4 . . . . 1 2 6 Projectile 59 | . . . . 11 7 . . . . . . . . 11 9 4 13 . . 1 . 3 . . . AOE 462 | . . . . 38 47 52 . . . . . 63 . . . 163 91 . . . . . . . 8 Actions | -11 -10 -10 -10 -9 -8 -7 -7 -7 -7 -6 -6 -6 -6 -6 -6 -6 -5 -4 -4 -4 -4 -3 -3 -2 -1 --------- Run | Scr Mat Min Exi Min Mat Fac Low Low Zio Pro Fac Gar Ext Cet Arc Hub Fac Fac Upp Upp Zhi Pro Res Res Acc Total 13527 | . 89 392 549 274 599 596 514 539 1085 331 745 621 607 363 198 229 1601 166 712 720 230 352 460 254 1301 Wait 678 | . 13 2 . 2 27 94 17 2 1 . 74 9 39 12 16 2 141 11 27 16 . 1 15 8 149 Move 11495 | . 63 375 534 254 528 444 450 510 1073 312 601 500 498 269 163 200 1191 124 648 647 187 313 418 230 963 Hop 1 | . . . . . . . . . . . . . . . . . 1 . . . . . . . . Pick Up 98 | . 4 2 5 3 8 5 1 2 2 1 3 6 3 7 . . 18 4 7 1 2 1 2 1 10 Fast Attach 107 | . . . 3 2 5 5 3 2 2 1 6 4 5 9 . 1 22 2 2 3 5 3 1 3 18 Attach 41 | . 1 . . 2 6 1 1 . 1 . 1 2 2 4 . . 9 2 1 . 1 1 3 1 2 Detach 4 | . . . . 1 1 . . . . . . . . . . . . . . . . 1 1 . . Swap 131 | . . 1 1 . 1 6 3 2 1 2 8 8 6 6 . 2 29 6 2 8 5 4 3 3 24 Drop 185 | . 2 3 6 5 13 9 3 2 5 3 14 9 8 6 . . 27 7 8 9 9 5 1 1 30 Fire 455 | . 6 9 . 5 9 18 10 19 . . . 8 1 35 18 24 132 5 17 36 21 23 7 5 47 Melee 313 | . . . . . 1 14 26 . . 12 38 63 41 15 . . 30 5 . . . . 9 2 57 Ram . | . . . . . . . . . . . . . . . . . . . . . . . . . . Kick 1 | . . . . . . . . . . . . . . . . . . . . . . . . . 1 Crush 2 | . . . . . . . . . . . . . . . 1 . 1 . . . . . . . . Escape Stasis 16 | . . . . . . . . . . . . 12 4 . . . . . . . . . . . . Rewire . | . . . . . . . . . . . . . . . . . . . . . . . . . . Trap . | . . . . . . . . . . . . . . . . . . . . . . . . . . Miscellaneous . | . . . . . . . . . . . . . . . . . . . . . . . . . . Route ------- -11/Scrapyard -10/Materials -10/Mines (discovered 3 exits: *Mat x2 / *Exi) -10/Exiles -9/Mines -8/Materials -7/Factory (discovered 4 exits: Sto x2 / *Low x2) -7/Lower Caves -7/Lower Caves -7/Zion -6/Proximity Caves -6/Factory (discovered 5 exits: Fac x2 / Ext x2 / Gar) -6/Garrison (discovered 3 exits: *Ext x3) -6/Extension (discovered 3 exits: *Fac x2 / *Cet) -6/Cetus (discovered 2 exits: *Fac / *Arc) -6/Archives (discovered 3 exits: *Fac / *Hub x2) -6/Hub_04(d) (discovered 2 exits: *Fac x2) -5/Factory (discovered 3 exits: *Fac / *Upp x2) -4/Factory -4/Upper Caves -4/Upper Caves -4/Zhirov -3/Proximity Caves -3/Research (discovered 5 exits: *Res x3 / Qua x2) -2/Research (discovered 3 exits: *Acc x3) -1/Access To Epsilon Eridani History --------- Turn | Location | Event 1 | -11/Scrapyard | Identified exit to Materials 1 | -11/Scrapyard | Discovered exit to Materials (range 0) 1 | -11/Scrapyard | Entered Materials 1 | -10/Materials | Evolved 1 slot: Utility x1 10 | -10/Materials | Identified exit to Mines 10 | -10/Materials | Discovered exit to Mines (range 16) 113 | -10/Materials | Entered Mines 301 | -10/Mines | Identified exit to Materials 301 | -10/Mines | Discovered exit to Materials (range 6) 310 | -10/Mines | Build established: Mutant 559 | -10/Mines | Learned location of Mines (-9) 571 | -10/Mines | Discovered exit to Materials (range 7) 589 | -10/Mines | Deemed a non-threat by the Exiles lab entrance 590 | -10/Mines | Identified exit to Exiles 590 | -10/Mines | Discovered exit to Exiles (range 5) 595 | -10/Mines | Entered Exiles 624 | -10/Exiles | Met 8R-AWN 642 | -10/Exiles | Met EX-HEX 689 | -10/Exiles | Met EX-DEC 720 | -10/Exiles | Visited The Gauntlet 856 | -10/Exiles | Learned location of Zion (-7) 885 | -10/Exiles | Met EX-BIN 901 | -10/Exiles | Aligned with FarCom system 903 | -10/Exiles | Given EX-Vault access code 931 | -10/Exiles | Opened EX-Vault 941 | -10/Exiles | Found YOLO Cannon 944 | -10/Exiles | Found AWS/Thermal 950 | -10/Exiles | Found AWS/Gauss 992 | -10/Exiles | Warned to stay clear of 0b10 Research branches 1324 | -10/Exiles | Identified exit to Mines 1324 | -10/Exiles | Discovered exit to Mines (range 14) 1343 | -10/Exiles | Left Exiles lab with AWS/Gauss 1343 | -10/Exiles | Entered Mines 1456 | -9/Mines | Assembled infested the area 1464 | -9/Mines | Received a Rocket Launcher from a helpful Derelict 1536 | -9/Mines | A weapon hastily lodged in a ceiling crevice suddenly fell to the ground 1538 | -9/Mines | Destroyed 12 combat bots 1815 | -9/Mines | Identified exit to Materials 1815 | -9/Mines | Discovered exit to Materials (range 3) 1824 | -9/Mines | Entered Materials 1824 | -8/Materials | Accompanied by 2 allies 1824 | -8/Materials | Evolved 4 slots: Propulsion x2, Utility x2 1829 | -8/Materials | Led the pair of lost Derelicts to an unsafe place 2540 | -8/Materials | Identified exit to Factory 2540 | -8/Materials | Discovered exit to Factory (range 4) 2547 | -8/Materials | Entered Factory 2547 | -7/Factory | Accompanied by 1 ally 2547 | -7/Factory | Evolved 2 slots: Utility x2 3119 | -7/Factory | Identified exit to Storage 3119 | -7/Factory | Identified exit to Lower Caves 3224 | -7/Factory | Build established: Scavenger-Mutant 3289 | -7/Factory | Entered Lower Caves 3362 | -7/Lower Caves | Attracted the attention of an 0b10 checkpoint 3782 | -7/Lower Caves | Spotted B-75 Beast 3784 | -7/Lower Caves | Lost 3 parts (1p2u) 3942 | -7/Lower Caves | Identified exit to Lower Caves 3942 | -7/Lower Caves | Discovered exit to Lower Caves (range 8) 3949 | -7/Lower Caves | Entered another Lower Caves area 3980 | -7/Lower Caves | Attracted the attention of an 0b10 checkpoint 4096 | -7/Lower Caves | Learned location of 2 exits from Factory 4593 | -7/Lower Caves | Identified exit to Zion 4593 | -7/Lower Caves | Discovered exit to Zion (range 5) 4627 | -7/Lower Caves | Entered Zion 4699 | -7/Zion | Identified exit to Proximity Caves 4699 | -7/Zion | Discovered exit to Proximity Caves (range 16) 4730 | -7/Zion | System corruption cleaned by Quarantine Array 4774 | -7/Zion | Found Relay Coupler [Programmer] 4860 | -7/Zion | Learned location of Data Miner (-6) 5050 | -7/Zion | Learned Factory emergency access door positions 5203 | -7/Zion | Learned location of Warlord (-5) 5324 | -7/Zion | Rebuked by Imprinter 5883 | -7/Zion | Found Relay Coupler [Programmer] 5947 | -7/Zion | Entered Proximity Caves 6019 | -6/Proximity Caves | Learned location of 1 exit from Factory 6349 | -6/Proximity Caves | Identified exit to Factory 6349 | -6/Proximity Caves | Discovered exit to Factory (range 11) 6364 | -6/Proximity Caves | Entered Factory 6364 | -6/Factory | Evolved 2 slots: Utility x2 6365 | -6/Factory | Identified exit to Extension 6366 | -6/Factory | Identified exit to Factory 6742 | -6/Factory | Found Prototype Processor 6742 | -6/Factory | Identified Exp. Signal Interpreter 7064 | -6/Factory | Fabricated Arm. Leg (x2) 7297 | -6/Factory | Identified exit to Garrison 7297 | -6/Factory | Entered Garrison 7340 | -6/Garrison | Garrison Relay disabled 7370 | -6/Garrison | Triggered checkpoint 7558 | -6/Garrison | Triggered checkpoint 7567 | -6/Garrison | Lost 3 parts (2u1w) 7651 | -6/Garrison | Discovered exit to Extension (range 21) 7734 | -6/Garrison | Triggered checkpoint 7788 | -6/Garrison | Discovered exit to Extension (range 11) 7874 | -6/Garrison | Triggered checkpoint 7927 | -6/Garrison | Discovered exit to Extension (range 9) 7944 | -6/Garrison | Installed Relay Interface Framework 8012 | -6/Garrison | Triggered checkpoint 8058 | -6/Garrison | Garrison Relay disabled 8124 | -6/Garrison | Entered Extension 8150 | -6/Extension | Disrupted transfer network 8650 | -6/Extension | Spotted B-75 Beast 8655 | -6/Extension | Rescued A7 8672 | -6/Extension | Spotted B-75 Beast 8697 | -6/Extension | Allies destroyed B-75 Beast 8724 | -6/Extension | Destroyed B-75 Beast 8731 | -6/Extension | Extracted ID and sensor layout for unrecognized location from A7's data core 8775 | -6/Extension | Discovered exit to Factory (range 3) 8803 | -6/Extension | Build established: Bothacker-Mutant 8868 | -6/Extension | Identified exit to Cetus 8868 | -6/Extension | Discovered exit to Cetus (range 22) 8869 | -6/Extension | Discovered exit to Factory (range 21) 8896 | -6/Extension | Entered Cetus 8912 | -6/Cetus | Spotted Cetus Guard 8912 | -6/Cetus | Spotted Cetus Guard 8913 | -6/Cetus | Spotted Cetus Guard 8920 | -6/Cetus | Spotted Cetus Guard 8934 | -6/Cetus | Destroyed Cetus Guard 8943 | -6/Cetus | Destroyed Cetus Guard 8951 | -6/Cetus | Destroyed Cetus Guard 8969 | -6/Cetus | Destroyed Cetus Guard 8998 | -6/Cetus | Lost 13 parts (2p5n5u1w) 9183 | -6/Cetus | Identified exit to Archives 9183 | -6/Cetus | Discovered exit to Archives (range 15) 9212 | -6/Cetus | Spotted Cetus Guard 9213 | -6/Cetus | Spotted Cetus Guard 9262 | -6/Cetus | Spotted Cetus Guard 9267 | -6/Cetus | Spotted Cetus Guard 9276 | -6/Cetus | Build established: Scavenger-Mutant 9279 | -6/Cetus | Destroyed Cetus Guard 9291 | -6/Cetus | Destroyed Cetus Guard 9324 | -6/Cetus | Destroyed Cetus Guard 9383 | -6/Cetus | Discovered exit to Factory (range 15) 9391 | -6/Cetus | Met Revision 17 9510 | -6/Cetus | Entered Archives 9583 | -6/Archives | Unable to access archive contents 9621 | -6/Archives | Identified exit to Hub_04(d) 9621 | -6/Archives | Discovered exit to Hub_04(d) (range 15) 9652 | -6/Archives | Unable to access archive contents 9672 | -6/Archives | Unable to access archive contents 9677 | -6/Archives | Discovered exit to Factory (range 15) 9698 | -6/Archives | Unable to access archive contents 9700 | -6/Archives | Discovered exit to Hub_04(d) (range 16) 9833 | -6/Archives | Entered Hub_04(d) 9992 | -6/Hub_04(d) | Discovered exit to Factory (range 10) 10189 | -6/Hub_04(d) | Network Hub disabled 10189 | -6/Hub_04(d) | Spotted Lightning 10189 | -6/Hub_04(d) | Spotted Lightning 10189 | -6/Hub_04(d) | Spotted Lightning 10189 | -6/Hub_04(d) | Spotted Lightning 10189 | -6/Hub_04(d) | Spotted Lightning 10190 | -6/Hub_04(d) | Core integrity fell below 50% 10193 | -6/Hub_04(d) | Discovered exit to Factory (range 14) 10193 | -6/Hub_04(d) | Spotted Lightning 10196 | -6/Hub_04(d) | Spotted Lightning 10197 | -6/Hub_04(d) | Spotted Lightning 10197 | -6/Hub_04(d) | Spotted Lightning 10198 | -6/Hub_04(d) | Spotted Lightning 10199 | -6/Hub_04(d) | Spotted Lightning 10200 | -6/Hub_04(d) | Spotted Lightning 10223 | -6/Hub_04(d) | Entered Factory 10223 | -5/Factory | Evolved 2 slots: Power x1, Weapon x1 10224 | -5/Factory | Identified exit to Upper Caves 10621 | -5/Factory | Spotted B-75 Beast 11032 | -5/Factory | Sage 6a assimilated hostile G-50 Soldier 11386 | -5/Factory | Discovered exit to Upper Caves (range 8) 11623 | -5/Factory | Local fabrication network quarantined 11684 | -5/Factory | Fabricated Adv. Variable Charge Gun (x1) 11708 | -5/Factory | Found Hvy. Insulated Plating 11723 | -5/Factory | First assault squad dispatched 11754 | -5/Factory | Build established: Bothacker-Mutant 11952 | -5/Factory | Lost 4 parts (1p1n1u1w) 12111 | -5/Factory | Build established: Scavenger-Mutant 12308 | -5/Factory | Lost 3 parts (3u) 12631 | -5/Factory | Identified exit to Factory 12631 | -5/Factory | Discovered exit to Factory (range 10) 12647 | -5/Factory | Entered another Factory area 12647 | -4/Factory | Accompanied by 3 allies 12647 | -4/Factory | Evolved 2 slots: Utility x1, Weapon x1 12812 | -4/Factory | Identified exit to Upper Caves 12812 | -4/Factory | Discovered exit to Upper Caves (range 23) 12849 | -4/Factory | Entered Upper Caves 12891 | -4/Upper Caves | Attracted the attention of an 0b10 checkpoint 12930 | -4/Upper Caves | Attracted the attention of an 0b10 base 12970 | -4/Upper Caves | Learned Armory emergency access door positions 12970 | -4/Upper Caves | Learned Extension security intel 12970 | -4/Upper Caves | Learned Factory garrison access intel 12970 | -4/Upper Caves | Learned Extension garrison access intel 12970 | -4/Upper Caves | Learned Armory garrison access intel 12983 | -4/Upper Caves | Build established: Bothacker-Mutant 13023 | -4/Upper Caves | Learned Research terminal intel 13157 | -4/Upper Caves | Learned location of Armory (-4) 13678 | -4/Upper Caves | Identified exit to Upper Caves 13678 | -4/Upper Caves | Discovered exit to Upper Caves (range 3) 13706 | -4/Upper Caves | Entered another Upper Caves area 13706 | -4/Upper Caves | Accompanied by 1 ally 14232 | -4/Upper Caves | Build established: Scavenger-Mutant 14331 | -4/Upper Caves | Learned Research emergency access door positions 14607 | -4/Upper Caves | Identified exit to Zhirov 14607 | -4/Upper Caves | Discovered exit to Zhirov (range 15) 14623 | -4/Upper Caves | Entered Zhirov 14623 | -4/Zhirov | Identified exit to Proximity Caves 14623 | -4/Zhirov | Discovered exit to Proximity Caves (range 3) 14645 | -4/Zhirov | Met Zhirov 14667 | -4/Zhirov | Learned location of Quarantine (-3) 14667 | -4/Zhirov | Learned location of Testing (-2) 14667 | -4/Zhirov | Learned location of Command (-1) 14693 | -4/Zhirov | Zhirov requested help retrieving the SGEMP Prototype 14714 | -4/Zhirov | Found Alien Artifact 14714 | -4/Zhirov | Identified Integrated Dissipator 14714 | -4/Zhirov | Installed Integrated Dissipator, increased core heat dissipation (+2%) 14865 | -4/Zhirov | Found Alien Artifact 14911 | -4/Zhirov | Entered Proximity Caves 15085 | -3/Proximity Caves | Identified exit to Research 15371 | -3/Proximity Caves | Entered Research 15371 | -3/Research | Evolved 2 slots: Propulsion x1, Utility x1 15373 | -3/Research | Loaded intel: 20 terminal locations 15420 | -3/Research | Identified exit to Quarantine 15510 | -3/Research | Identified exit to Research 15931 | -3/Research | Entered another Research area 15931 | -2/Research | Accompanied by 3 allies 15931 | -2/Research | Evolved 2 slots: Utility x2 16131 | -2/Research | Identified exit to Access 16248 | -2/Research | Entered Access 16248 | -1/Access | Accompanied by 2 allies 16248 | -1/Access | Evolved 2 slots: Utility x2 16395 | -1/Access | Energy Cycler disabled 16663 | -1/Access | P-80 Master assimilated allied Warden 8b 16969 | -1/Access | Build established: Scavenger-Tank 17333 | -1/Access | Found Quantum Capacitor 17885 | -1/Access | Identified exit to Surface 17885 | -1/Access | Discovered exit to Surface (range 6) 17890 | *** | Escaped! Last Messages --------------- Downloading analysis... D-83 Annihilator Tier: 9 The most powerful demolisher, the D-83 Annihilator is built around a single micro-nuke launcher. Its advanced guidance computer is extremely accurate, and excellent defense against explosives reduce damage from such sources to almost insignificant levels, whether caused by its own micro-nuke or those of an enemy. >>Analysis(G-73 Enforcer) Downloading analysis... G-73 Enforcer Tier: 9 The latest G-series implementation, armed with a powerful phase gun supported by a secondary heavy laser. While not exceptionally effective in single combat, the G-73 is much more formidable in groups, as they normally operate. 17834_ /&OP2J9B 5PC|VFB WW33OVE%LJ2SFA5GEP%/74 17852_ System corrupted: Component data lost. 17885_ The Access Shell folds into the floor. 17885_ EXIT=FOUND: SURFACE Map ----- +----------------------------------------------------+ | ?????????????????????????????????????????????????? | | ?????????????????????????????????????????????????? | | ?????????????????????????????????????????????????? | | ?????????????????????????????????????????????????? | | ?????????????????????????????????????????????????? | | ?????????????????????????????????????????????????? | | ?????????????????????????????????????????????????? | | ?????????????????????????????????????????????????? | | ?????????????????????????????????????????????????? | | ?????????????????????????????????????????????????? | | ?????????????????????????????????????????????????? | | ?????????????????????????????????????????????????? | | ?????????????????????????????????????????????????? | | ??????????# ???#?????????????????????????????????? | | ??????????# ????????????????????????????????????? | | ??????????# ????????????????????????????????????? | | ??????????# ???#????????????????????????????????? | | ??????????# ???????????#????????????????????????? | | ??????????# ??????###???????????????????????????? | | ??????????# ####### ##########??????????????????? | | ??????????# """T""" "??????????????????? | | ??????????# """ """ "????BB????????????? | | ? ????????# "????BB??????#+####? | | ??????????# "??????????? #? | | ??????????# "" "?"?????????? #? | | ??????????# @" "???????????? +? | | ??????????# "???????????? #? | | ??????#???# "????BB??????# # | | ??????????# "????BB??????# #? | | ?? ?????# "????????????# #? | | ??????????# ####### ##########???????????## + | | ??????????# ##?#??###?????????????????????# #? | | ? ???????## ##############????????????????# #? | | ??????????# # #?????????????#??#= #? | | ??"???????# # #??????????#???#?#%= # | | ??????????# + """"" #??????????????#?# #? | | ??????????# # """""""" ##???????????????# #? | | ??????????# # """"""????#??????##?????#??# ## | | ??????????# # """"??????????#????????#?# #? | | ??????????# # ???????#????########## ## | | #?????????# # ????????????# !! # # | | ??????????# # ??????###?## !! *# # | | ??????????# # ????##???#" ! # # | | ????????#?# # ???????#?## # # | | ??????????# # ?????????# + # | | ??????????# ############????????## # # | | ?? ????? ?# #???#?????????#??????# # + | | ??????????# #????????????????????# # # | | ??????????# #????????????#???????# #### # | | ?????? ???+ #?????????? ?????????############" # | +----------------------------------------------------+ Best States ------------- Heat Dissipation 110 Energy Generation 57 Energy Capacity 430 Matter Stores 300 Matter Capacity 300 Sight Range 22 Terrain Scan Range 18 Terrain Scan Density 10 Jamming Range 14 Power Amplification 30 Base Temperature (-) 200 Armor Coverage 825 Resistance: KI 65 Resistance: TH 50 Resistance: EX 35 Resistance: EM 65 Resistance: I 35 Resistance: S 35 Resistance: P 35 Power Shielding 33 Propulsion Shielding 33 Phase Shifting 15 Evasion (%) 55 Targeting Accuracy 13 Melee Accuracy 6 Target Analysis 8 Armor Integrity Analysis 50 Recoil Reduction 4 Kinecelleration 30 Overload Amplification 50 Offensive Hacking 10 Item Schematics ----------------- Beamcaster | -7/Zion | Free Barrage Gun | -7/Zion | Free Ripper | -7/Zion | Free Adv. Variable Charge Gun | -5/Factory | Scanalyzed Adv. Datajack | -5/Factory | Hacked Assault Drone Bay | -4/Zhirov | Free Exp. Heat Sink | -4/Zhirov | Free Exp. Optical Array | -4/Zhirov | Free Imp. Arc Thrower | -4/Zhirov | Free Robot Schematics ------------------ A-02 Transporter | -3/Research | Hacked Fabricated ------------ Arm. Leg | x2 | -6/Factory | Preloaded Adv. Variable Charge Gun | x1 | -5/Factory Alien Tech Used ----------------- Integrated Dissipator Achievements -------------- Left-hand Path Challenges ------------ None Game ------ Seed SpreadScanTorch Manual? 0 Play Time 02:54:27 Cumulative 150.1 hours Start 2019.11.22 @ 19:09:56 End 2019.11.22 @ 23:08:29 Sessions 5 Manual Loads 0 Difficulty Explorer Special Mode None Game No. 53 Rogue 17 Adventurer 32 Explorer 4 Win Type 0 Total 10 Types 6/0/2/2/0/0/0 Lore% 66 Gallery% 77 Achievement% 64 Wizard Run 0 Options --------- ASCII 0 Keyboard 0 Movement Numpad Keybinds 0 Fullscreen 0 Font 20/Terminus Map View 76x50 Tactical HUD 1 Map Filters NONE Filters NONE Steam 1 RUN: 9a422a69-a7ec-48bb-87e6-5159f6fec861